lending/lending_fUSD_20251116
["ID","MTS","AMOUNT","RATE_DAILY","PERIOD"]
[394131640,1763310885110,-177.32,0.00028767,2]
[394131641,1763310885120,-177.32,0.00028767,2]
[394131642,1763310885130,-177.32,0.00028767,2]
[394131643,1763310885139,-177.32,0.00028767,2]
[394131644,1763310885149,-177.32,0.00028767,2]
[394131645,1763310885158,-177.32,0.00028767,2]
[394131646,1763310885168,-177.32,0.00028767,2]
[394131647,1763310885177,-177.32,0.00028767,2]
[394131648,1763310885187,-177.32,0.00028767,2]
[394131649,1763310885196,-177.32,0.00028767,2]
[394131650,1763310885205,-177.32,0.00028767,2]
[394131651,1763310885215,-177.32,0.00028767,2]
[394131652,1763310885225,-1558.26254964,0.00028876,2]
[394131653,1763310885235,-215.35,0.000289,7]
[394131654,1763310885244,-749.98999144,0.00029,2]
[394131655,1763310885256,-1929.86988243,0.00029,2]
[394131656,1763310885266,-34508.776621,0.00029,2]
[394131657,1763310885278,-11082.92023081,0.00029,2]
[394131658,1763310885287,-1680.76,0.00029,2]
[394131659,1763310885297,-177.32,0.00029096,2]
[394131660,1763310885306,-177.32,0.00029096,2]
[394131661,1763310885316,-177.32,0.00029096,2]
[394131662,1763310885326,-177.32,0.00029096,2]
[394131663,1763310885337,-177.32,0.00029096,2]
[394131664,1763310885346,-177.32,0.00029096,2]
[394131665,1763310885355,-177.32,0.00029096,2]
[394131666,1763310885364,-177.32,0.00029096,2]
[394131667,1763310885373,-177.32,0.00029096,2]
[394131668,1763310885383,-177.32,0.00029096,2]
[394131669,1763310885392,-177.32,0.00029096,2]
[394131670,1763310885403,-354.64,0.00029096,2]
[394131671,1763310885412,-177.32,0.00029096,2]
[394131672,1763310885422,-177.32,0.00029096,2]
[394131673,1763310885432,-177.32,0.00029096,2]
[394131674,1763310885441,-150.0,0.00029096,2]
[394131675,1763310885450,-177.32,0.00029096,2]
[394131676,1763310885459,-150.0,0.00029096,2]
[394131677,1763310885469,-177.32,0.00029096,2]
[394131678,1763310885479,-177.32,0.00029096,2]
[394131679,1763310885489,-150.0,0.00029096,2]
[394131680,1763310885499,-177.32,0.00029096,2]
[394131681,1763310885508,-177.32,0.00029096,2]
[394131682,1763310885518,-177.32,0.00029096,2]
[394131683,1763310885528,-177.32,0.00029096,2]
[394131684,1763310885537,-150.0,0.00029096,2]
[394131685,1763310885547,-177.32,0.00029096,2]
[394131686,1763310885558,-177.32,0.00029096,2]
[394131687,1763310885567,-150.0,0.00029096,2]
[394131688,1763310885577,-177.32,0.00029096,2]
[394131689,1763310885587,-150.0,0.00029096,2]
[394131690,1763310885596,-177.32,0.00029096,2]
[394131691,1763310885607,-177.32,0.00029096,2]
[394131692,1763310885616,-177.32,0.00029096,2]
[394131693,1763310885625,-300.0,0.00029096,2]
[394131694,1763310885634,-500.0,0.0002913,5]
[394131695,1763310885643,-152.0,0.00029347,4]
[394131696,1763310885653,-1119.94475774,0.000295,7]
[394131697,1763310885662,-829.33151164,0.00029529,5]
[394131698,1763310885673,-1074.32826409,0.0002953,5]
[394131699,1763310885682,-1002.85412522,0.0002953,5]
[394131700,1763310885695,-1007.34338469,0.0002953,5]
[394131701,1763310885705,-1107.12466983,0.0002953,5]
[394131702,1763310885715,-1123.83851059,0.0002953,5]
[394131703,1763310885724,-1133.8789875,0.0002953,5]
[394131704,1763310885736,-1081.43733522,0.0002953,5]
[394131705,1763310885746,-1105.84416408,0.0002953,5]
[394131706,1763310885757,-1115.80195426,0.0002953,5]
[394131707,1763310885769,-1139.72273709,0.0002953,5]
[394131708,1763310885780,-1042.39382181,0.0002953,5]
[394131709,1763310885790,-1911.34961855,0.0002953,5]
[394131710,1763310885801,-259.93941008,0.00029668,2]
[394131711,1763310885813,-168.1,0.000298,7]
[394131712,1763310885823,-6631.3124293,0.000299,2]
[394131713,1763310885834,-150.0,0.00029918,2]
[394131714,1763310885844,-150.0,0.00029918,2]
[394131715,1763310885854,-150.0,0.00029918,2]
[394131716,1763310885865,-150.0,0.00029918,2]
[394131717,1763310885875,-150.0,0.00029918,2]
[394131718,1763310885886,-150.0,0.00029918,2]
[394131719,1763310885896,-286.16,0.00029918,2]
[394131720,1763310885907,-177.32,0.00029918,2]
[394131721,1763310885916,-234.48124328,0.0002999,2]
[394131722,1763310885925,-6034.13354987,0.0003,3]
[394131723,1763310885935,-1012.01529811,0.0003,2]
[394131724,1763310885944,-1795.96021753,0.0003,2]
[394131725,1763310885954,-4600.66442657,0.0003,2]
[394131726,1763310885966,-161.09454275,0.0003,2]
[394131727,1763310885979,-50000.0,0.0003,2]
[394131728,1763310885990,-5539.77,0.0003,2]
[394131729,1763310886000,-400.0,0.0003,2]
[394131730,1763310886009,-413.44866689,0.0003,2]
[394131731,1763310886019,-2472.24079512,0.0003,2]
[394131732,1763310886028,-159.867477,0.0003,7]
[394131733,1763310886038,-151.0,0.0003,7]
[394131734,1763310886047,-151.0,0.0003,7]
[394131735,1763310886056,-151.0,0.0003,7]
[394131736,1763310886066,-151.0,0.0003,7]
[394131737,1763310886075,-151.0,0.0003,7]
[394131738,1763310886221,-293.37641,0.0003,7]
[394131739,1763310886231,-170.896684,0.0003,7]
[394131740,1763310886242,-297.850905,0.0003,7]
[394131741,1763310886251,-151.0,0.0003,7]
[394131742,1763310886261,-297.850905,0.0003,7]
[394131743,1763310886271,-151.0,0.0003,7]
[394131744,1763310886281,-297.850905,0.0003,7]
[394131745,1763310886290,-151.0,0.0003,7]
[394131746,1763310886299,-297.850905,0.0003,7]
[394131747,1763310886310,-151.0,0.0003,7]
[394131748,1763310886319,-151.0,0.0003,7]
[394131749,1763310886329,-185.573264,0.0003,7]
[394131750,1763310886338,-170.456547,0.0003,7]
[394131751,1763310886348,-151.0,0.0003,7]
[394131752,1763310886358,-151.0,0.0003,7]
[394131753,1763310886368,-151.0,0.0003,7]
[394131754,1763310886377,-151.0,0.0003,7]
[394131755,1763310886387,-151.0,0.0003,7]
[394131756,1763310886399,-151.0,0.0003,7]
[394131757,1763310886408,-151.0,0.0003,7]
[394131758,1763310886418,-151.0,0.0003,7]
[394131759,1763310886428,-151.0,0.0003,7]
[394131760,1763310886438,-151.0,0.0003,7]
[394131761,1763310886449,-151.0,0.0003,7]
[394131762,1763310886459,-239.761031,0.0003,7]
[394131763,1763310886468,-151.0,0.0003,7]
[394131764,1763310886478,-239.761031,0.0003,7]
[394131765,1763310886488,-170.263456,0.0003,7]
[394131766,1763310886498,-239.761031,0.0003,7]
[394131767,1763310886508,-239.761031,0.0003,7]
[394131768,1763310886518,-151.0,0.0003,7]
[394131769,1763310886528,-187.597508,0.0003,7]
[394131770,1763310886538,-151.0,0.0003,7]
[394131771,1763310886548,-151.0,0.0003,7]
[394131772,1763310886558,-151.0,0.0003,7]
[394131773,1763310886568,-151.0,0.0003,7]
[394131774,1763310886578,-151.0,0.0003,7]
[394131775,1763310886588,-151.0,0.0003,7]
[394131776,1763310886598,-151.0,0.0003,7]
[394131777,1763310886608,-151.0,0.0003,7]
[394131778,1763310886620,-151.0,0.0003,7]
[394131779,1763310886630,-108086.39168119,0.0003,5]
[394131780,1763310886641,-151.0,0.0003,7]
[394131781,1763310886655,-151.0,0.0003,7]
[394131782,1763310886664,-219.036736,0.0003,7]
[394131783,1763310886677,-151.0,0.0003,7]
[394131784,1763310886690,-625.659022,0.0003,7]
[394131785,1763310886704,-625.659022,0.0003,7]
[394131786,1763310886715,-151.0,0.0003,7]
[394131787,1763310886726,-625.659022,0.0003,7]
[394131788,1763310886735,-625.659022,0.0003,7]
[394131789,1763310886746,-151.0,0.0003,7]
[394131790,1763310886756,-151.0,0.0003,7]
[394131791,1763310886771,-151.0,0.0003,7]
[394131792,1763310886781,-151.0,0.0003,7]
[394131793,1763310886792,-151.0,0.0003,7]
[394131794,1763310886802,-151.0,0.0003,7]
[394131795,1763310886813,-151.0,0.0003,7]
[394131796,1763310886823,-151.0,0.0003,7]
[394131797,1763310886838,-151.0,0.0003,7]
[394131798,1763310886848,-151.0,0.0003,7]
[394131799,1763310886858,-151.0,0.0003,7]
[394131800,1763310886869,-151.0,0.0003,7]
[394131801,1763310886879,-151.0,0.0003,7]
[394131802,1763310886890,-153.866856,0.0003,7]
[394131803,1763310886901,-151.0,0.0003,7]
[394131804,1763310886922,-153.866856,0.0003,7]
[394131805,1763310886939,-153.866856,0.0003,7]
[394131806,1763310886950,-153.866856,0.0003,7]
[394131807,1763310886960,-151.0,0.0003,7]
[394131808,1763310886970,-151.0,0.0003,7]
[394131809,1763310886980,-151.0,0.0003,7]
[394131810,1763310886990,-151.0,0.0003,7]
[394131811,1763310887002,-151.0,0.0003,7]
[394131812,1763310887012,-151.0,0.0003,7]
[394131813,1763310887022,-151.0,0.0003,7]
[394131814,1763310887032,-151.0,0.0003,7]
[394131815,1763310887041,-270.531978,0.0003,7]
[394131816,1763310887051,-166.453057,0.0003,7]
[394131817,1763310887062,-603.713558,0.0003,7]
[394131818,1763310887073,-151.0,0.0003,7]
[394131819,1763310887082,-603.713558,0.0003,7]
[394131820,1763310887093,-603.713558,0.0003,7]
[394131821,1763310887103,-603.713558,0.0003,7]
[394131822,1763310887113,-151.0,0.0003,7]
[394131823,1763310887124,-151.0,0.0003,7]
[394131824,1763310887134,-151.0,0.0003,7]
[394131825,1763310887144,-151.0,0.0003,7]
[394131826,1763310887159,-151.0,0.0003,7]
[394131827,1763310887170,-151.0,0.0003,7]
[394131828,1763310887180,-151.0,0.0003,7]
[394131829,1763310887190,-151.0,0.0003,7]
[394131830,1763310887199,-151.0,0.0003,7]
[394131831,1763310887208,-168.467038,0.0003,7]
[394131832,1763310887218,-151.0,0.0003,7]
[394131833,1763310887232,-151.0,0.0003,7]
[394131834,1763310887242,-151.0,0.0003,7]
[394131835,1763310887251,-294.073807,0.0003,7]
[394131836,1763310887260,-151.0,0.0003,7]
[394131837,1763310887270,-151.0,0.0003,7]
[394131838,1763310887279,-152.511074,0.0003,7]
[394131839,1763310887289,-151.0,0.0003,7]
[394131840,1763310887299,-671.123358,0.0003,7]
[394131841,1763310887308,-671.123358,0.0003,7]
[394131842,1763310887317,-671.123358,0.0003,7]
[394131843,1763310887327,-671.123358,0.0003,7]
[394131844,1763310887336,-151.0,0.0003,7]
[394131845,1763310887345,-151.0,0.0003,7]
[394131846,1763310887354,-151.0,0.0003,7]
[394131847,1763310887363,-151.0,0.0003,7]
[394131848,1763310887373,-151.0,0.0003,7]
[394131849,1763310887382,-151.0,0.0003,7]
[394131850,1763310887391,-151.0,0.0003,7]
[394131851,1763310887401,-151.0,0.0003,7]
[394131852,1763310887410,-200.0,0.0003013,2]
[394131853,1763310887419,-200.0,0.00030132,2]
[394131854,1763310887428,-495.26,0.00030137,2]
[394131855,1763310887437,-215.35,0.000302,30]
[394131856,1763310887446,-956.41,0.00030247,2]
[394131857,1763310887455,-152.0,0.00030266,5]
[394131858,1763310887464,-1580.90589449,0.0003031,2]
[394131859,1763310887473,-1680.76,0.000304,2]
[394131860,1763310887483,-150.0,0.00030411,2]
[394131861,1763310887494,-150.0,0.00030411,2]
[394131862,1763310887508,-150.0,0.00030411,2]
[394131863,1763310887517,-150.0,0.00030411,2]
[394131864,1763310887526,-200.0,0.00030433,2]
[394131865,1763310887535,-1099.8404,0.00030532,3]
[394131866,1763310887544,-2000.0,0.00030532,3]
[394131867,1763310887554,-1599.0,0.00030574,2]
[394131868,1763310887563,-793.0,0.00030574,2]
[394131869,1763310887571,-1275.0,0.00030574,2]
[394131870,1763310887580,-1190.0,0.00030574,2]
[394131871,1763310887589,-907.0,0.00030574,2]
[394131872,1763310887602,-200.0,0.00030738,2]
[394131873,1763310887611,-175.95,0.0003074,2]
[394131874,1763310887621,-150.0,0.0003074,2]
[394131875,1763310887630,-150.0,0.0003074,2]
[394131876,1763310887640,-150.0,0.0003074,2]
[394131877,1763310887649,-150.0,0.0003074,2]
[394131878,1763310887659,-150.0,0.0003074,2]
[394131879,1763310887670,-150.0,0.0003074,2]
[394131880,1763310887680,-150.0,0.0003074,2]
[394131881,1763310887692,-150.0,0.0003074,2]
[394131882,1763310887702,-300.0,0.0003074,2]
[394131883,1763310887712,-150.0,0.0003074,2]
[394131884,1763310887722,-150.0,0.0003074,2]
[394131885,1763310887731,-150.0,0.0003074,2]
[394131886,1763310887741,-150.0,0.0003074,2]
[394131887,1763310887751,-150.0,0.0003074,2]
[394131888,1763310887761,-150.0,0.0003074,2]
[394131889,1763310887771,-150.0,0.0003074,2]
[394131890,1763310887780,-11518.14728537,0.0003095,2]
[394131891,1763310887789,-301.99999907,0.00031,2]
[394131892,1763310887799,-152.0,0.00031184,6]
[394131893,1763310887812,-168.1,0.000314,7]
[394131894,1763310887821,-645.12403091,0.0003143,4]
[394131895,1763310887830,-150.0,0.00031562,2]
[394131896,1763310887840,-150.0,0.00031562,2]
[394131897,1763310887849,-150.0,0.00031562,2]
[394131898,1763310887858,-150.0,0.00031562,2]
[394131899,1763310887868,-150.0,0.00031562,2]
[394131900,1763310887877,-150.0,0.00031562,2]
[394131901,1763310887888,-150.0,0.00031562,2]
[394131902,1763310887901,-150.0,0.00031562,2]
[394131903,1763310887910,-150.0,0.00031562,2]
[394131904,1763310887919,-150.0,0.00031562,2]
[394131905,1763310887929,-150.0,0.00031562,2]
[394131906,1763310887940,-150.0,0.00031562,2]
[394131907,1763310887948,-215.35,0.000316,30]
[394131908,1763310887958,-1558.26254964,0.00031884,2]
[394131909,1763310887967,-1312.28041013,0.00032,2]
[394131910,1763310887977,-150.0,0.00032,2]
[394131911,1763310887986,-1680.76,0.00032,2]
[394131912,1763310887996,-3078.41529786,0.00032,7]
[394131913,1763310888005,-152.0,0.00032102,7]
[394131914,1763310888018,-484.05,0.000322,7]
[394131915,1763310888027,-160.26946119,0.00032299,4]
[394131916,1763310888036,-2000.0,0.000323,2]
[394131917,1763310888046,-223.48,0.00032428,2]
[394131918,1763310888055,-495.26,0.00032877,2]
[394131919,1763310888064,-500.0,0.00032877,7]
[394131920,1763310888074,-506.71933362,0.00032877,7]
[394131921,1763310888083,-150.0,0.00033,2]
[394131922,1763310888092,-588.45085317,0.00033,7]
[394131923,1763310888102,-152.0,0.0003302,8]
[394131924,1763310888111,-488.0,0.0003315,7]
[394131925,1763310888120,-745.48,0.00033165,2]
[394131926,1763310888129,-215.35,0.000335,30]
[394131927,1763310888138,-1599.0,0.00033574,2]
[394131928,1763310888147,-793.0,0.00033574,2]
[394131929,1763310888157,-1275.0,0.00033574,2]
[394131930,1763310888166,-1190.0,0.00033574,2]
[394131931,1763310888175,-907.0,0.00033574,2]
[394131932,1763310888184,-152.0,0.00033939,9]
[394131933,1763310888193,-488.0,0.00033972,8]
[394131934,1763310888205,-1580.90589449,0.00033986,2]
[394131935,1763310888214,-150.0,0.00034,2]
[394131936,1763310888224,-650.31962264,0.00034486,5]
[394131937,1763310888233,-1680.76,0.000345,2]
[394131938,1763310888242,-488.0,0.00034794,9]
[394131939,1763310888252,-1558.26254964,0.00034892,2]
[394131940,1763310888262,-200.0,0.000349,2]
[394131941,1763310888271,-400.0,0.000349,12]
[394131942,1763310888280,-150.0,0.00035,2]
[394131943,1763310888290,-2311.14422092,0.00035,4]
[394131944,1763310888299,-671.123358,0.00035,28]
[394131945,1763310888308,-671.123358,0.00035,28]
[394131946,1763310888317,-671.123358,0.00035,28]
[394131947,1763310888327,-671.123358,0.00035,28]
[394131948,1763310888336,-151.0,0.00035,31]
[394131949,1763310888345,-151.0,0.00035,31]
[394131950,1763310888354,-151.0,0.00035,31]
[394131951,1763310888363,-151.0,0.00035,31]
[394131952,1763310888373,-228.843487,0.00035,31]
[394131953,1763310888382,-151.0,0.00035,31]
[394131954,1763310888391,-151.0,0.00035,31]
[394131955,1763310888402,-151.0,0.00035,31]
[394131956,1763310888411,-151.0,0.00035,31]
[394131957,1763310888420,-151.0,0.00035,31]
[394131958,1763310888430,-151.0,0.00035,31]
[394131959,1763310888439,-151.0,0.00035,31]
[394131960,1763310888449,-151.0,0.00035,31]
[394131961,1763310888458,-151.0,0.00035,31]
[394131962,1763310888467,-151.0,0.00035,31]
[394131963,1763310888477,-151.0,0.00035,31]
[394131964,1763310888486,-151.0,0.00035,31]
[394131965,1763310888495,-151.0,0.00035,30]
[394131966,1763310888504,-4000.0,0.00035,5]
[394131967,1763310888513,-54405.40166344,0.00035,2]
[394131968,1763310888679,-47907.6130865,0.00035,2]
[394131969,1763310888873,-151.0,0.000249,7]
[394131970,1763310888882,-151.0,0.00035,31]
[394131971,1763310888892,-1295.15944958,0.00035,2]
[394131972,1763310888903,-11599.08748879,0.00035,2]
[394131973,1763310888914,-1099.96406077,0.00035,2]
[394131974,1763310888994,-620.12758437,0.00035,2]
[394131975,1763310889005,-171485.33532255,0.00035,2]
[394131976,1763310889120,-3678.3429,0.00016797,2]
[394131977,1763310889129,-2055.91331043,0.00017187,2]
[394131978,1763310889139,-2055.91331043,0.0001799,2]
[394131979,1763310889150,-9195.45716134,0.00019433,2]
[394131980,1763310889159,-151.0,0.000249,7]
[394131981,1763310889168,-265.880093,0.000249,7]
[394131982,1763310889178,-2055.91331043,0.0002499,2]
[394131983,1763310889187,-151.0,0.00035,31]
[394131984,1763310889196,-9412.57991437,0.00035,2]
[394131985,1763310889211,-684.39999965,0.00035,2]
[394131986,1763310889223,-457562.74560308,0.00035,2]
[394131987,1763310889485,2099.0,0.0003,120]
[394131988,1763310891726,2305.1,0.00015863,2]
[394131989,1763310894426,1963.26,0.0001584,2]
[394131990,1763310896035,163.52,0.00012647,2]
[394131991,1763310896490,86367.01,0.00016052,2]
[394131992,1763311033100,151.0,0.00015791,2]
[394131993,1763311033694,156.587,0.00015791,2]
[394131994,1763311034607,311.84574709,0.00015791,2]
[394132132,1763311157376,1978.55,8.113e-05,2]
[394132134,1763311157588,1978.55,8.54e-05,2]
[394132135,1763311157801,1978.55,8.967e-05,2]
[394132136,1763311157997,1978.55,9.394e-05,2]
[394132137,1763311158196,1466.37725291,9.821e-05,2]
[394132138,1763311158219,512.17274709,9.821e-05,2]
[394132139,1763311158410,1978.55,0.00010248,2]
[394132140,1763311158626,1978.55,0.00010675,2]
[394132141,1763311158838,1978.55,0.00011102,2]
[394132142,1763311159040,1978.55,0.00011529,2]
[394132143,1763311159249,1573.63725291,0.00011956,2]
[394132144,1763311159273,404.91274709,0.00011956,2]
[394132145,1763311159466,1978.55,0.00012383,2]
[394132146,1763311159683,1978.55,0.0001281,2]
[394132147,1763311159898,1978.55,0.00013237,2]
[394132148,1763311160144,1978.55,0.00013664,2]
[394132149,1763311160337,1680.89725291,0.00014091,2]
[394132150,1763311160359,297.65274709,0.00014091,2]
[394132151,1763311160553,1978.55,0.00014518,2]
[394132152,1763311160735,1978.55,0.00014945,2]
[394132153,1763311160939,1978.55,0.00015372,2]
[394132154,1763311161144,1978.55,0.00015799,2]
[394132201,1763311223292,1788.15725291,0.00011956,2]
[394132202,1763311223321,8189.30028849,0.00011956,2]
[394132203,1763311223369,250.0,0.00011956,2]
[394132206,1763311231649,640.78227655,0.00016081,2]
[394132208,1763311243154,150.5,0.00026017,120]
[394132209,1763311243618,150.5,0.00026007,120]
[394132210,1763311244033,150.5,0.00025997,120]
[394132215,1763311287802,404.89043821,0.0003013,120]
[394132217,1763311289890,485.0,0.0003013,120]
[394132218,1763311290680,198.0,0.0003013,120]
[394132219,1763311291477,304.0,0.0003013,120]
[394132220,1763311292166,255.78,0.00015998,2]
[394132221,1763311292255,331.0,0.0003013,120]
[394132222,1763311293064,206.0,0.0003013,120]
[394132223,1763311293856,499.0,0.0003013,120]
[394132224,1763311294822,454.0,0.0003013,120]
[394132225,1763311295498,305.0,0.0003013,120]
[394132226,1763311296298,401.0,0.0003013,120]
[394132228,1763311297086,484.0,0.0003013,120]
[394132229,1763311306417,329.0,0.0003013,120]
[394132230,1763311307245,169.0,0.0003013,120]
[394132231,1763311308310,308.0,0.0003013,120]
[394132232,1763311309311,171.0,0.0003013,120]
[394132233,1763311310104,449.0,0.0003013,120]
[394132234,1763311311385,376.0,0.0003013,120]
[394132235,1763311312190,368.0,0.0003013,120]
[394132237,1763311312965,164.0,0.0003013,120]
[394132238,1763311313738,155.0,0.0003013,120]
[394132239,1763311314515,269.0,0.0003013,120]
[394132240,1763311315296,351.0,0.0003013,120]
[394132246,1763311333345,298.52414201,0.00016039,2]
[394132250,1763311348451,278.0,0.0003013,120]
[394132251,1763311349223,231.0,0.0003013,120]
[394132255,1763311349686,999.0,0.0001601,3]
[394132256,1763311350000,167.0,0.0003013,120]
[394132257,1763311351282,171.0,0.0003013,120]
[394132258,1763311352098,400.0,0.0003013,120]
[394132259,1763311352888,210.0,0.0003013,120]
[394132260,1763311353761,174.0,0.0003013,120]
[394132261,1763311354545,313.0,0.0003013,120]
[394132267,1763311407492,393.0,0.0003013,120]
[394132268,1763311408281,369.0,0.0003013,120]
[394132269,1763311409074,485.0,0.0003013,120]
[394132270,1763311409871,359.6775762,0.0003013,120]
[394132274,1763311446706,653.85,0.00016002,2]
[394132281,1763311515479,180.0,0.0003013,120]
[394132282,1763311517790,289.31341061,0.0003013,120]
[394132285,1763311561095,-1634376.92175673,0.00041488,30]
[394132286,1763311561143,-330.42513896,0.00041488,30]
[394132287,1763311561184,-500.0,0.00041488,120]
[394132288,1763311561227,-500.0,0.00041488,120]
[394132289,1763311561270,-500.0,0.00041488,120]
[394132290,1763311561311,-500.0,0.00041488,120]
[394132291,1763311561353,-252.78301294,0.00041488,120]
[394132292,1763311561393,-400.625677,0.00041488,120]
[394132293,1763311561435,-500.0,0.00041488,120]
[394132294,1763311561480,-500.0,0.00041488,120]
[394132295,1763311561522,-500.0,0.00041488,120]
[394132296,1763311561561,-613.09777357,0.00041488,120]
[394132297,1763311561599,-3360526.1466408,0.00041488,90]
[394132298,1763311565233,-4570978.6233592,0.00041488,90]
[394132299,1763311565281,-463.0075675,0.00041488,120]
[394132300,1763311565333,-50000.0,0.00041488,34]
[394132301,1763311565380,-50000.0,0.00041488,35]
[394132302,1763311565428,-50000.0,0.00041488,36]
[394132303,1763311565481,-50000.0,0.00041488,37]
[394132304,1763311565527,-50000.0,0.00041488,38]
[394132305,1763311565572,-313.64180221,0.00041488,120]
[394132306,1763311565616,-500.0,0.00041488,120]
[394132307,1763311565661,-500.0,0.00041488,120]
[394132308,1763311565706,-500.0,0.00041488,120]
[394132309,1763311565751,-500.0,0.00041488,120]
[394132310,1763311565796,-500.0,0.00041488,120]
[394132311,1763311565842,-605.33642882,0.00041488,120]
[394132312,1763311565893,-451.38076788,0.00041488,120]
[394132313,1763311565942,-300.0,0.00041488,60]
[394132314,1763311565988,-500.0,0.00041488,120]
[394132315,1763311566032,-500.0,0.00041488,120]
[394132316,1763311566076,-242.54592339,0.00041488,120]
[394132317,1763311566120,-50000.0,0.00041488,39]
[394132318,1763311566164,-450.0,0.00041488,120]
[394132319,1763311566208,-834.53,0.00041488,120]
[394132320,1763311566252,-834.53,0.00041488,120]
[394132321,1763311566299,-834.53,0.00041488,120]
[394132322,1763311566343,-834.53,0.00041488,120]
[394132323,1763311566387,-834.53,0.00041488,120]
[394132324,1763311566433,-834.53,0.00041488,120]
[394132325,1763311566482,-834.53,0.00041488,120]
[394132326,1763311566526,-834.53,0.00041488,120]
[394132327,1763311566574,-834.53,0.00041488,120]
[394132328,1763311566619,-834.53,0.00041488,120]
[394132329,1763311566663,-834.53,0.00041488,120]
[394132330,1763311566708,-834.53,0.00041488,120]
[394132331,1763311566756,-834.53,0.00041488,120]
[394132332,1763311566802,-834.53,0.00041488,120]
[394132333,1763311566847,-834.53,0.00041488,120]
[394132334,1763311566898,-834.53,0.00041488,120]
[394132335,1763311566944,-834.53,0.00041488,120]
[394132336,1763311566988,-834.53,0.00041488,120]
[394132337,1763311567031,-834.53,0.00041488,120]
[394132338,1763311567076,-834.53,0.00041488,120]
[394132339,1763311567123,-834.53,0.00041488,120]
[394132340,1763311567171,-834.53,0.00041488,120]
[394132341,1763311567219,-834.53,0.00041488,120]
[394132342,1763311567268,-834.59261987,0.00041488,120]
[394132343,1763311567314,-366.75671684,0.00041488,120]
[394132344,1763311567359,-298.88857525,0.00041488,120]
[394132345,1763311567410,-500.0,0.00041488,120]
[394132346,1763311567459,-500.0,0.00041488,120]
[394132347,1763311567507,-500.0,0.00041488,120]
[394132348,1763311567554,-500.0,0.00041488,120]
[394132349,1763311567600,-500.0,0.00041488,120]
[394132350,1763311567645,-500.0,0.00041488,120]
[394132351,1763311567690,-500.0,0.00041488,120]
[394132352,1763311567740,-500.0,0.00041488,120]
[394132353,1763311567787,-504.18175272,0.00041488,120]
[394132354,1763311567838,-97496.85448632,0.00041488,120]
[394132356,1763311584900,-3111.09034291,0.00041488,120]
[394132357,1763311584949,-3000.0,0.00041488,120]
[394132358,1763311584995,-174.03890737,0.00041488,120]
[394132359,1763311585042,-584.55098594,0.00041488,120]
[394132360,1763311585088,-394514.31352426,0.00041488,30]
[394132361,1763311585131,-28854.45834171,0.00041488,30]